fUSD/lending_fUSD_20250124
["ID","MTS","AMOUNT","RATE_DAILY","PERIOD"]
[350186868,1737677457503,-1114.91,0.00017808,2]
[350186869,1737677457512,-1089.95,0.00017808,2]
[350186870,1737677457522,-510.61,0.00017808,2]
[350186871,1737677457532,-1241.3,0.00017808,2]
[350186872,1737677457544,-990.43,0.00017808,2]
[350186873,1737677457554,-658.08,0.00017808,2]
[350186874,1737677457563,-1007.53,0.00017808,2]
[350186875,1737677457572,-751.01,0.00017808,2]
[350186876,1737677457582,-1841.81,0.00017808,2]
[350186877,1737677457591,-500.0,0.00017808,2]
[350186878,1737677457600,-986.92,0.00017808,2]
[350186879,1737677457610,-578.89,0.00017808,2]
[350186880,1737677457620,-500.0,0.00017808,2]
[350186881,1737677457629,-591.97,0.00017808,2]
[350186882,1737677457639,-1238.24,0.00017808,2]
[350186883,1737677457648,-500.0,0.00017808,2]
[350186884,1737677457658,-525.82,0.00017808,2]
[350186885,1737677457668,-500.0,0.00017808,2]
[350186886,1737677457678,-500.0,0.00017808,2]
[350186887,1737677457687,-941.12,0.00017808,2]
[350186888,1737677457697,-969.89,0.00017808,2]
[350186889,1737677457707,-819.74,0.00017808,2]
[350186890,1737677457716,-500.0,0.00017808,2]
[350186891,1737677457726,-500.0,0.00017808,2]
[350186892,1737677457735,-677.26,0.00017808,2]
[350186893,1737677457745,-500.0,0.00017808,2]
[350186894,1737677457755,-870.66,0.00017808,2]
[350186895,1737677457765,-500.0,0.00017808,2]
[350186896,1737677457775,-643.26,0.00017808,2]
[350186897,1737677457784,-507.81,0.00017808,2]
[350186898,1737677457797,-839.49,0.00017808,2]
[350186899,1737677457806,-1229.74,0.00017808,2]
[350186900,1737677457817,-155.35801635,0.00017808,2]
[350186901,1737677457827,-736.88,0.00017808,2]
[350186902,1737677457836,-560.36,0.00017808,2]
[350186903,1737677457846,-500.0,0.00017808,2]
[350186904,1737677457856,-514.22826867,0.00017808,2]
[350186905,1737677457866,-500.0,0.00017808,2]
[350186906,1737677457875,-500.0,0.00017808,2]
[350186907,1737677457886,-826.37,0.00017808,2]
[350186908,1737677457895,-150.0,0.00017812,2]
[350186909,1737677457906,-150.0,0.00017823,2]
[350186910,1737677457916,-985.163036,0.00017881,2]
[350186911,1737677457927,-985.163036,0.00017881,2]
[350186912,1737677457936,-151.0,0.00017881,2]
[350186913,1737677457946,-314.62,0.00017882,2]
[350186914,1737677457956,-675.88488167,0.000179,2]
[350186915,1737677457966,-500.0,0.00017967,2]
[350186916,1737677457975,-500.0,0.00017967,2]
[350186917,1737677457985,-151.0,0.00017988,2]
[350186918,1737677457995,-506.458788,0.00018,2]
[350186919,1737677458005,-242.95049565,0.00018,2]
[350186920,1737677458014,-366.0,0.00018,2]
[350186921,1737677458024,-745.0,0.00018,2]
[350186922,1737677458034,-231.0,0.00018,2]
[350186923,1737677458046,-10845.3321264,0.00018,2]
[350186924,1737677458055,-9990.24833046,0.00018012,2]
[350186925,1737677458065,-4918.42337442,0.00018013,2]
[350186926,1737677458074,-675.88488144,0.00018038,2]
[350186927,1737677458084,-500.0,0.00018073,2]
[350186928,1737677458094,-500.0,0.00018073,2]
[350186929,1737677458103,-500.0,0.00018073,2]
[350186930,1737677458113,-500.74019741,0.00018073,2]
[350186931,1737677458122,-428.99823,0.00018073,2]
[350186932,1737677458131,-226.109898,0.00018073,2]
[350186933,1737677458141,-226.109898,0.00018073,2]
[350186934,1737677458151,-151.0,0.00018073,2]
[350186935,1737677458162,-414.228958,0.00018073,2]
[350186936,1737677458172,-414.228958,0.00018073,2]
[350186937,1737677458183,-151.0,0.00018073,2]
[350186938,1737677458193,-173.094276,0.00018073,2]
[350186939,1737677458203,-151.0,0.00018073,2]
[350186940,1737677458212,-78153.12093494,0.00018073,2]
[350186941,1737677458437,-500.0,0.00016711,2]
[350186942,1737677458448,-299.99997,0.00018073,2]
[350186943,1737677458460,-1561.440015,0.00018073,2]
[350186944,1737677458886,-252.90102083,0.00016438,2]
[350186945,1737677458898,-247.09897917,0.00016438,2]
[350186946,1737677458908,-500.0,0.00016438,2]
[350186947,1737677458919,-500.0,0.00016438,2]
[350186948,1737677458929,-500.0,0.00016438,2]
[350186949,1737677458938,-500.0,0.00016711,2]
[350186950,1737677458948,-500.0,0.00016712,2]
[350186951,1737677458959,-500.0,0.00016712,2]
[350186952,1737677458969,-500.0,0.00016985,2]
[350186953,1737677458979,-500.0,0.00016985,2]
[350186954,1737677458988,-618.69998835,0.00016986,2]
[350186955,1737677459000,-11.37001165,0.00016986,2]
[350186956,1737677459010,-500.0,0.00016986,2]
[350186957,1737677459019,-500.0,0.00017259,2]
[350186958,1737677459029,-500.0,0.00017259,2]
[350186959,1737677459043,-500.0,0.00017533,2]
[350186960,1737677459061,-500.0,0.00017533,2]
[350186961,1737677459071,-500.0,0.00017807,2]
[350186962,1737677459082,-4248.05424461,0.00018073,2]
[350186963,1737677459094,-2326.04111249,0.00018073,2]
[350186964,1737677459112,-500.0,0.00016438,2]
[350186965,1737677459122,-141.36830874,0.00018073,2]
[350186966,1737677459135,-2219.533677,0.00018073,2]
[350186967,1737677459146,-1121.14604999,0.00018073,2]
[350186968,1737677459158,-1827.4623212,0.00018073,2]
[350186969,1737677459169,-62245.46839695,0.00018073,2]
[350186970,1737677459180,-2729.40718883,0.00018073,2]
[350186971,1737677459305,-4839.0900235,0.00018073,2]
[350186972,1737677459317,-8276.71597944,0.00018073,2]
[350186973,1737677459328,-2238.99168339,0.00018073,2]
[350186974,1737677459340,-809.98594867,0.00018073,2]
[350186975,1737677459361,-632929.0195006,0.00018073,2]
[350186976,1737677459373,-1073.32697681,0.00018073,2]
[350186977,1737677459384,-4975.51485734,0.00018073,2]
[350186978,1737677459396,-455.84576,0.00018073,2]
[350186979,1737677459407,-665.17985081,0.00018073,2]
[350186980,1737677459419,-517.7691157,0.00018073,2]
[350186981,1737677459441,-274.176,0.00016712,2]
[350186982,1737677459639,-500.0,0.00016438,2]
[350186983,1737677459651,-500.0,0.00016711,2]
[350186984,1737677459661,-500.0,0.00016711,2]
[350186985,1737677459672,-225.824,0.00016712,2]
[350186986,1737677459686,-500.0,0.00016985,2]
[350186987,1737677459702,-364.56,0.00016985,2]
[350186988,1737677459716,-591.0,0.00017259,2]
[350186989,1737677459731,-500.0,0.00017259,2]
[350186990,1737677459741,-9454.7947502,0.00018073,2]
[350186991,1737677459760,-500.0,0.00016438,2]
[350186992,1737677459770,-22571.85141126,0.00018073,2]
[350186993,1737677459781,-200969.0414588,0.00018073,2]
[350186994,1737677459797,-14975.01032948,0.00018073,2]
[350186995,1737677459807,-94352.24972066,0.00018073,2]
[350186996,1737677459822,-500.0,0.00018081,2]
[350186997,1737677459831,-500.0,0.00018081,2]
[350186998,1737677459840,-500.0,0.00018081,2]
[350186999,1737677459850,-648.88,0.00018081,2]
[350187000,1737677459860,-500.0,0.00018081,2]
[350187001,1737677459869,-500.0,0.00018081,2]
[350187002,1737677459879,-151.0,0.00018081,2]
[350187003,1737677459888,-500.0,0.00018081,2]
[350187004,1737677459897,-500.0,0.00018081,2]
[350187005,1737677459907,-449.73353778,0.00018081,2]
[350187006,1737677459917,-500.0,0.00018081,2]
[350187007,1737677459928,-481.30295455,0.00018081,2]
[350187008,1737677459938,-500.0,0.00018081,2]
[350187009,1737677459947,-500.0,0.00018081,2]
[350187010,1737677459958,-500.0,0.00018081,2]
[350187011,1737677459967,-500.0,0.00018081,2]
[350187012,1737677459976,-500.0,0.00018081,2]
[350187013,1737677459985,-500.0,0.00018081,2]
[350187014,1737677459998,-500.0,0.00018081,2]
[350187015,1737677460008,-500.0,0.00018081,2]
[350187016,1737677460018,-500.0,0.00018081,2]
[350187017,1737677460028,-568.1,0.00018081,2]
[350187018,1737677460040,-1675.15,0.00018081,2]
[350187019,1737677460050,-500.0,0.00018081,2]
[350187020,1737677460060,-500.0,0.00018081,2]
[350187021,1737677460071,-500.0,0.00018081,2]
[350187022,1737677460080,-882.03,0.00018081,2]
[350187023,1737677460090,-500.0,0.00018081,2]
[350187024,1737677460100,-1787.72,0.00018081,2]
[350187025,1737677460109,-628.84,0.00018081,2]
[350187026,1737677460118,-500.0,0.00018081,2]
[350187027,1737677460128,-500.0,0.00018081,2]
[350187028,1737677460139,-511.1,0.00018081,2]
[350187029,1737677460148,-798.14,0.00018081,2]
[350187030,1737677460158,-500.0,0.00018081,2]
[350187031,1737677460168,-985.163036,0.00018081,2]
[350187032,1737677460178,-985.163036,0.00018081,2]
[350187033,1737677460189,-1453.94,0.00018081,2]
[350187034,1737677460199,-500.0,0.00018081,2]
[350187035,1737677460209,-151.0,0.00018081,2]
[350187036,1737677460219,-500.0,0.00018081,2]
[350187037,1737677460229,-555.39,0.00018081,2]
[350187038,1737677460239,-500.0,0.00018081,2]
[350187039,1737677460249,-500.0,0.00018081,2]
[350187040,1737677460259,-500.0,0.00018081,2]
[350187041,1737677460269,-500.0,0.00018081,2]
[350187042,1737677460280,-500.0,0.00018081,2]
[350187043,1737677460292,-500.0,0.00018081,2]
[350187044,1737677460302,-500.0,0.00018081,2]
[350187045,1737677460311,-222.84,0.00018081,2]
[350187046,1737677460321,-500.0,0.00018081,2]
[350187047,1737677460331,-851.55,0.00018081,2]
[350187048,1737677460340,-293.03414097,0.00018081,2]
[350187049,1737677460351,-2044.29,0.00018081,2]
[350187050,1737677460360,-500.0,0.00018081,2]
[350187051,1737677460371,-227.41123559,0.00018081,2]
[350187052,1737677460380,-500.0,0.00018081,2]
[350187053,1737677460391,-941.3,0.00018081,2]
[350187054,1737677460401,-500.0,0.00018081,2]
[350187055,1737677460410,-500.0,0.00018082,2]
[350187056,1737677460419,-255.127159,0.00018082,2]
[350187057,1737677460429,-500.0,0.00018082,2]
[350187058,1737677460439,-500.0,0.00018082,2]
[350187059,1737677460448,-500.0,0.00018082,2]
[350187060,1737677460457,-500.0,0.00018082,2]
[350187061,1737677460467,-836.78,0.00018082,2]
[350187062,1737677460477,-524.69,0.00018082,2]
[350187063,1737677460487,-556.71,0.00018082,2]
[350187064,1737677460496,-1114.91,0.00018082,2]
[350187065,1737677460506,-1089.95,0.00018082,2]
[350187066,1737677460516,-510.61,0.00018082,2]
[350187067,1737677460527,-1241.3,0.00018082,2]
[350187068,1737677460536,-990.43,0.00018082,2]
[350187069,1737677460548,-658.08,0.00018082,2]
[350187070,1737677460558,-1007.53,0.00018082,2]
[350187071,1737677460568,-751.01,0.00018082,2]
[350187072,1737677460578,-1841.81,0.00018082,2]
[350187073,1737677460587,-500.0,0.00018082,2]
[350187074,1737677460597,-986.92,0.00018082,2]
[350187075,1737677460606,-578.89,0.00018082,2]
[350187076,1737677460616,-500.0,0.00018082,2]
[350187077,1737677460625,-591.97,0.00018082,2]
[350187078,1737677460635,-1238.24,0.00018082,2]
[350187079,1737677460645,-500.0,0.00018082,2]
[350187080,1737677460655,-525.82,0.00018082,2]
[350187081,1737677460665,-500.0,0.00018082,2]
[350187082,1737677460675,-500.0,0.00018082,2]
[350187083,1737677460684,-941.12,0.00018082,2]
[350187084,1737677460694,-969.89,0.00018082,2]
[350187085,1737677460704,-819.74,0.00018082,2]
[350187086,1737677460713,-500.0,0.00018082,2]
[350187087,1737677460723,-500.0,0.00018082,2]
[350187088,1737677460733,-677.26,0.00018082,2]
[350187089,1737677460743,-500.0,0.00018082,2]
[350187090,1737677460752,-870.66,0.00018082,2]
[350187091,1737677460763,-500.0,0.00018082,2]
[350187092,1737677460773,-643.26,0.00018082,2]
[350187093,1737677460784,-507.81,0.00018082,2]
[350187094,1737677460800,-839.49,0.00018082,2]
[350187095,1737677460811,-1229.74,0.00018082,2]
[350187096,1737677460821,-736.88,0.00018082,2]
[350187097,1737677460830,-560.36,0.00018082,2]
[350187098,1737677460840,-500.0,0.00018082,2]
[350187099,1737677460849,-500.0,0.00018082,2]
[350187100,1737677460859,-500.0,0.00018082,2]
[350187101,1737677460870,-826.37,0.00018082,2]
[350187102,1737677460880,-200.0,0.00018082,2]
[350187103,1737677460890,-1387.13,0.00018082,2]
[350187104,1737677460900,-500.0,0.00018105,2]
[350187105,1737677460910,-150.0,0.00018141,2]
[350187106,1737677460923,-150.0,0.00018141,2]
[350187107,1737677460933,-2019.0,0.00018141,2]
[350187108,1737677460943,-1270.0,0.00018141,2]
[350187109,1737677460955,-636.0,0.00018141,2]
[350187110,1737677460965,-567.0,0.00018141,2]
[350187111,1737677460975,-150.0,0.00018141,2]
[350187112,1737677460987,-1864.0,0.00018141,2]
[350187113,1737677460999,-781.0,0.00018141,2]
[350187114,1737677461009,-1261.0,0.00018141,2]
[350187115,1737677461020,-2948.0,0.00018141,2]
[350187116,1737677461030,-908.0,0.00018141,2]
[350187117,1737677461044,-538.0,0.00018141,2]
[350187118,1737677461054,-150.0,0.00018141,2]
[350187119,1737677461063,-3985.0,0.00018141,2]
[350187120,1737677461073,-675.88488144,0.00018176,2]
[350187121,1737677461083,-150.0,0.00018234,2]
[350187122,1737677461093,-151.22,0.000183,2]
[350187123,1737677461104,-151.22,0.000183,2]
[350187124,1737677461113,-9990.24833046,0.00018308,2]
[350187125,1737677461124,-4918.42337442,0.00018308,2]
[350187126,1737677461134,-675.88488144,0.00018314,2]
[350187127,1737677461144,-500.0,0.00018355,2]
[350187128,1737677461153,-500.0,0.00018355,2]
[350187129,1737677461262,-500.0,0.00018355,2]
[350187130,1737677461272,-500.0,0.00018355,2]
[350187131,1737677461281,-500.0,0.00018355,2]
[350187132,1737677461295,-500.0,0.00018355,2]
[350187133,1737677461305,-500.0,0.00018355,2]
[350187134,1737677461314,-500.0,0.00018355,2]
[350187135,1737677461324,-500.0,0.00018355,2]
[350187136,1737677461333,-500.0,0.00018355,2]
[350187137,1737677461343,-151.0,0.00018355,2]
[350187138,1737677461352,-500.0,0.00018355,2]
[350187139,1737677461361,-500.0,0.00018355,2]
[350187140,1737677461371,-173.094276,0.00018355,2]
[350187141,1737677461381,-500.0,0.00018355,2]
[350187142,1737677461390,-500.0,0.00018355,2]
[350187143,1737677461400,-500.0,0.00018355,2]
[350187144,1737677461410,-500.0,0.00018355,2]
[350187145,1737677461419,-500.0,0.00018355,2]
[350187146,1737677461429,-568.1,0.00018355,2]
[350187147,1737677461439,-1675.15,0.00018355,2]
[350187148,1737677461448,-500.0,0.00018355,2]
[350187149,1737677461458,-500.0,0.00018355,2]
[350187150,1737677461467,-500.0,0.00018355,2]
[350187151,1737677461477,-882.03,0.00018355,2]
[350187152,1737677461486,-557.97323675,0.00018355,2]
[350187153,1737677461495,-1787.72,0.00018355,2]
[350187154,1737677461505,-628.84,0.00018355,2]
[350187155,1737677461514,-500.0,0.00018355,2]
[350187156,1737677461523,-500.0,0.00018355,2]
[350187157,1737677461532,-511.1,0.00018355,2]
[350187158,1737677461544,-798.14,0.00018355,2]
[350187159,1737677461553,-500.0,0.00018355,2]
[350187160,1737677461563,-1453.94,0.00018355,2]
[350187161,1737677461572,-500.0,0.00018355,2]
[350187162,1737677461581,-500.0,0.00018355,2]
[350187163,1737677461590,-555.39,0.00018355,2]
[350187164,1737677461600,-500.0,0.00018355,2]
[350187165,1737677461609,-500.0,0.00018355,2]
[350187166,1737677461618,-500.0,0.00018355,2]
[350187167,1737677461627,-500.0,0.00018355,2]
[350187168,1737677461636,-500.0,0.00018355,2]
[350187169,1737677461646,-151.0,0.00018355,2]
[350187170,1737677461655,-500.0,0.00018355,2]
[350187171,1737677461665,-500.0,0.00018355,2]
[350187172,1737677461674,-500.0,0.00018355,2]
[350187173,1737677461684,-851.55,0.00018355,2]
[350187174,1737677461694,-2044.29,0.00018355,2]
[350187175,1737677461704,-500.0,0.00018355,2]
[350187176,1737677461713,-500.0,0.00018355,2]
[350187177,1737677461723,-941.3,0.00018355,2]
[350187178,1737677461733,-386.16562193,0.00018355,2]
[350187179,1737677461743,-500.0,0.00018356,2]
[350187180,1737677461752,-255.127159,0.00018356,2]
[350187181,1737677461761,-500.0,0.00018356,2]
[350187182,1737677461771,-500.0,0.00018356,2]
[350187183,1737677461780,-152.961161,0.00018356,2]
[350187184,1737677461792,-500.0,0.00018356,2]
[350187185,1737677461802,-500.0,0.00018356,2]
[350187186,1737677461811,-836.78,0.00018356,2]
[350187187,1737677461821,-524.69,0.00018356,2]
[350187188,1737677461830,-556.71,0.00018356,2]
[350187189,1737677461839,-985.163036,0.00018356,2]
[350187190,1737677461848,-1114.91,0.00018356,2]
[350187191,1737677461858,-985.163036,0.00018356,2]
[350187192,1737677461866,-1089.95,0.00018356,2]
[350187193,1737677461876,-510.61,0.00018356,2]
[350187194,1737677461885,-165.557821,0.00018356,2]
[350187195,1737677461894,-1241.3,0.00018356,2]
[350187196,1737677461903,-990.43,0.00018356,2]
[350187197,1737677461917,-658.08,0.00018356,2]
[350187198,1737677461926,-1007.53,0.00018356,2]
[350187199,1737677461935,-751.01,0.00018356,2]
[350187200,1737677461944,-1841.81,0.00018356,2]
[350187201,1737677461955,-500.0,0.00018356,2]
[350187202,1737677461964,-986.92,0.00018356,2]
[350187203,1737677461973,-578.89,0.00018356,2]
[350187204,1737677461983,-500.0,0.00018356,2]
[350187205,1737677461994,-591.97,0.00018356,2]
[350187206,1737677462004,-1238.24,0.00018356,2]
[350187207,1737677462013,-500.0,0.00018356,2]
[350187208,1737677462023,-525.82,0.00018356,2]
[350187209,1737677462032,-500.0,0.00018356,2]
[350187210,1737677462045,-500.0,0.00018356,2]
[350187211,1737677462055,-941.12,0.00018356,2]
[350187212,1737677462064,-969.89,0.00018356,2]
[350187213,1737677462074,-819.74,0.00018356,2]
[350187214,1737677462084,-500.0,0.00018356,2]
[350187215,1737677462093,-500.0,0.00018356,2]
[350187216,1737677462103,-677.26,0.00018356,2]
[350187217,1737677462112,-500.0,0.00018356,2]
[350187218,1737677462121,-870.66,0.00018356,2]
[350187219,1737677462131,-500.0,0.00018356,2]
[350187220,1737677462141,-643.26,0.00018356,2]
[350187221,1737677462150,-507.81,0.00018356,2]
[350187222,1737677462160,-839.49,0.00018356,2]
[350187223,1737677462170,-1229.74,0.00018356,2]
[350187224,1737677462179,-736.88,0.00018356,2]
[350187225,1737677462188,-560.36,0.00018356,2]
[350187226,1737677462198,-500.0,0.00018356,2]
[350187227,1737677462208,-500.0,0.00018356,2]
[350187228,1737677462217,-500.0,0.00018356,2]
[350187229,1737677462227,-826.37,0.00018356,2]
[350187230,1737677462236,-150.0,0.00018387,2]
[350187231,1737677462246,-226.109898,0.00018404,2]
[350187232,1737677462256,-226.109898,0.00018404,2]
[350187233,1737677462266,-151.0,0.00018404,2]
[350187234,1737677462276,-150.0,0.00018416,2]
[350187235,1737677462300,-150.0,0.00018416,2]
[350187236,1737677462310,-150.0,0.0001842,2]
[350187237,1737677462320,-150.0,0.00018421,2]
[350187238,1737677462330,-151.0,0.00018423,2]
[350187239,1737677462339,-173.094276,0.00018423,2]
[350187240,1737677462348,-150.0,0.00018426,2]
[350187241,1737677462358,-150.0,0.00018428,2]
[350187242,1737677462368,-150.0,0.00018431,2]
[350187243,1737677462378,-150.0,0.00018433,2]
[350187244,1737677462387,-1000.0,0.00018433,2]
[350187245,1737677462396,-150.0,0.00018434,2]
[350187246,1737677462406,-150.0,0.00018435,2]
[350187247,1737677462415,-150.0,0.00018439,2]
[350187248,1737677462425,-150.0,0.00018439,2]
[350187249,1737677462434,-150.0,0.00018441,2]
[350187250,1737677462444,-150.0,0.00018445,2]
[350187251,1737677462454,-150.0,0.00018446,2]
[350187252,1737677462464,-150.0,0.00018446,2]
[350187253,1737677462473,-150.0,0.00018451,2]
[350187254,1737677462482,-675.88488144,0.00018452,2]
[350187255,1737677462493,-150.0,0.00018452,2]
[350187256,1737677462502,-150.0,0.00018453,2]
[350187257,1737677462512,-150.0,0.00018455,2]
[350187258,1737677462521,-150.0,0.00018456,2]
[350187259,1737677462531,-150.0,0.00018457,2]
[350187260,1737677462544,-1000.0,0.00018458,2]
[350187261,1737677462554,-150.0,0.00018461,2]
[350187262,1737677462564,-150.0,0.00018462,2]
[350187263,1737677462574,-150.0,0.00018465,2]
[350187264,1737677462583,-150.0,0.0001847,2]
[350187265,1737677462592,-150.0,0.00018472,2]
[350187266,1737677462601,-150.0,0.00018472,2]
[350187267,1737677462611,-76.31314173,0.0001848,2]
[350187268,1737677462626,-73.68685827,0.0001848,2]
[350187269,1737677462635,-1000.0,0.00018481,2]
[350187270,1737677462646,-150.0,0.00018481,2]
[350187271,1737677462655,-150.0,0.00018489,2]
[350187272,1737677462664,-1000.0,0.0001849,2]
[350187273,1737677462674,-150.0,0.0001849,2]
[350187274,1737677462683,-985.163036,0.0001849,2]
[350187275,1737677462692,-985.163036,0.0001849,2]
[350187276,1737677462701,-151.0,0.0001849,2]
[350187277,1737677462711,-414.228958,0.00018494,2]
[350187278,1737677462720,-414.228958,0.00018494,2]
[350187279,1737677462729,-150.0,0.00018497,2]
[350187280,1737677462739,-150.0,0.00018498,2]
[350187281,1737677462747,-150.0,0.00018503,2]
[350187282,1737677462757,-1000.0,0.00018507,2]
[350187283,1737677462767,-150.0,0.0001851,2]
[350187284,1737677462776,-150.0,0.00018512,2]
[350187285,1737677462787,-150.0,0.00018512,2]
[350187286,1737677462800,-150.0,0.00018513,2]
[350187287,1737677462809,-1000.0,0.00018515,2]
[350187288,1737677462818,-150.0,0.00018515,2]
[350187289,1737677462827,-1000.0,0.0001852,2]
[350187290,1737677462836,-500.0,0.00018521,2]
[350187291,1737677462845,-150.0,0.00018521,2]
[350187292,1737677462854,-150.0,0.00018527,2]
[350187293,1737677462864,-150.0,0.00018529,2]
[350187294,1737677462874,-150.0,0.00018532,2]
[350187295,1737677462883,-150.0,0.00018534,2]
[350187296,1737677462893,-150.0,0.00018534,2]
[350187297,1737677462903,-150.0,0.00018541,2]
[350187298,1737677462916,-150.0,0.00018542,2]
[350187299,1737677462929,-150.0,0.00018545,2]
[350187300,1737677462938,-150.0,0.0001855,2]
[350187301,1737677462948,-150.0,0.0001855,2]
[350187302,1737677462961,-150.0,0.00018551,2]
[350187303,1737677462972,-150.0,0.00018552,2]
[350187304,1737677462982,-150.0,0.00018552,2]
[350187305,1737677462994,-150.0,0.00018557,2]
[350187306,1737677463102,-150.0,0.00018557,2]
[350187307,1737677463124,-150.0,0.00018557,2]
[350187308,1737677463136,-1000.0,0.00018563,2]
[350187309,1737677463147,-150.0,0.00018565,2]
[350187310,1737677463159,-150.0,0.00018569,2]
[350187311,1737677463171,-150.0,0.00018569,2]
[350187312,1737677463182,-150.0,0.0001857,2]
[350187313,1737677463193,-150.0,0.00018573,2]
[350187314,1737677463203,-150.0,0.00018577,2]
[350187315,1737677463215,-150.0,0.00018577,2]
[350187316,1737677463226,-150.0,0.00018584,2]
[350187317,1737677463236,-675.88488144,0.0001859,2]
[350187318,1737677463247,-150.0,0.0001859,2]
[350187319,1737677463258,-150.0,0.00018594,2]
[350187320,1737677463269,-2000.0,0.000186,2]
[350187321,1737677463279,-9990.24833046,0.00018603,2]
[350187322,1737677463293,-150.0,0.00018604,2]
[350187323,1737677463305,-4918.42337442,0.00018604,2]
[350187324,1737677463315,-150.0,0.00018605,2]
[350187325,1737677463326,-150.0,0.00018606,2]
[350187326,1737677463336,-150.0,0.00018609,2]
[350187327,1737677463346,-2000.0,0.0001861,2]
[350187328,1737677463357,-150.0,0.00018615,2]
[350187329,1737677463369,-727.06847747,0.00018619,2]
[350187330,1737677463380,-1216.101678,0.0001862,2]
[350187331,1737677463393,-2205.88871094,0.0001862,2]
[350187332,1737677463406,-274.30248106,0.0001862,2]
[350187333,1737677463417,-468.94752144,0.00018621,2]
[350187334,1737677463434,-615.65361704,0.00018621,2]
[350187335,1737677463444,-500.0,0.00018621,2]
[350187336,1737677463455,-1000.0,0.00018621,2]
[350187337,1737677463465,-500.0,0.00018629,2]
[350187338,1737677463475,-500.0,0.00018629,2]
[350187339,1737677463486,-500.0,0.00018629,2]
[350187340,1737677463496,-150.0,0.00018629,2]
[350187341,1737677463507,-500.0,0.00018629,2]
[350187342,1737677463517,-406.98,0.00018629,2]
[350187343,1737677463528,-500.0,0.00018629,2]
[350187344,1737677463538,-500.0,0.00018629,2]
[350187345,1737677463553,-500.0,0.00018629,2]
[350187346,1737677463563,-500.0,0.00018629,2]
[350187347,1737677463573,-500.0,0.00018629,2]
[350187348,1737677463583,-500.0,0.00018629,2]
[350187349,1737677463593,-500.0,0.00018629,2]
[350187350,1737677463603,-500.0,0.00018629,2]
[350187351,1737677463613,-500.0,0.00018629,2]
[350187352,1737677463624,-500.0,0.00018629,2]
[350187353,1737677463634,-500.0,0.00018629,2]
[350187354,1737677463644,-500.0,0.00018629,2]
[350187355,1737677463655,-568.1,0.00018629,2]
[350187356,1737677463665,-1675.15,0.00018629,2]
[350187357,1737677463675,-297.85673508,0.00018629,2]
[350187358,1737677463686,-500.0,0.00018629,2]
[350187359,1737677463696,-500.0,0.00018629,2]
[350187360,1737677463706,-882.03,0.00018629,2]
[350187361,1737677463716,-1787.72,0.00018629,2]
[350187362,1737677463726,-628.84,0.00018629,2]
[350187363,1737677463735,-500.0,0.00018629,2]
[350187364,1737677463745,-500.0,0.00018629,2]
[350187365,1737677463755,-511.1,0.00018629,2]
[350187366,1737677463766,-798.14,0.00018629,2]
[350187367,1737677463777,-500.0,0.00018629,2]